Workbook

Sheet Model
B2: Simple Project Finance Example (Solar) with VBA Macro for Debt Sizing
B3: ($ in Millions)
B6: Assumptions: | D6: Units: | J6: =$D$6 -> Units:
C8: Project Capacity: | D8: MW | E8: 1600 | G8: Initial PPA Rate: | J8: $ / MWh | K8: 65
C9: Net Capacity Factor: | D9: % | E9: 0.25 | G9: Escalation Factor: | J9: % | K9: 0.03
C10: Annual Degradation Factor: | D10: % | E10: 0.005 | G10: Hours in Year: | J10: # Hours | K10: =24*365 -> 8760
C12: Units: | D12: # | E12: 1000000 | G12: Operating & Maintenance Expense: | J12: $ / MW / Yr | K12: 20000
G13: Escalation Factor: | J13: % | K13: 0.025
C14: Loan Life Coverage Ratio (LLCR) Target: | D14: x | E14: 1.5
C15: Fixed Interest Rate on Debt: | D15: % | E15: 0.1 | G15: Useful Life of Maintenance CapEx: | J15: # Years | K15: 15
C16: Tax Rate: | D16: % | E16: 0.25 | G16: Working Capital % Revenue: | J16: # | K16: 0.05
C18: Present Value of CFADS Over Debt Tenor: | D18: $ M | E18: =NPV(Interest_Rate,OFFSET(G49,0,0,1,Tenor)) -> 1184.542101 | G18: Asset Useful Life: | J18: # Years | K18: 20
C19: Initial Debt Balance: | D19: $ M | E19: =E18/Min_LLCR -> 789.6947338 | G19: EBITDA Purchase Multiple: | J19: x | K19: 8
C20: Debt Tenor: | D20: # Years | E20: 10
G21: Purchase Enterprise Value: | J21: $ M | K21: =G43*K19 -> 1604.958688
G22: (-) Debt Used: | J22: $ M | K22: =-E19 -> -789.6947338
G23: Investor Equity: | J23: $ M | K23: =SUM(K21:K22) -> 815.2639542
F25: 0 | G25: =F25+1 -> 1 | H25: =G25+1 -> 2 | I25: =H25+1 -> 3 | J25: 4 | K25: 5 | L25: 6 | M25: 7 | N25: 8 | O25: 9 | P25: =O25+1 -> 10 | Q25: =P25+1 -> 11 | R25: =Q25+1 -> 12 | S25: =R25+1 -> 13 | T25: =S25+1 -> 14 | U25: =T25+1 -> 15 | V25: =U25+1 -> 16 | W25: =V25+1 -> 17 | X25: =W25+1 -> 18 | Y25: =X25+1 -> 19 | Z25: 20
G26: Projected Years:
B27: Cash Flow Projections: | D27: =$D$6 -> Units: | E27: Total: | F27: ="Year "&F25 -> Year 0 | G27: ="Year "&G25 -> Year 1 | H27: Year 2 | I27: Year 3 | J27: Year 4 | K27: Year 5 | L27: Year 6 | M27: Year 7 | N27: Year 8 | O27: Year 9 | P27: Year 10 | Q27: Year 11 | R27: Year 12 | S27: Year 13 | T27: Year 14 | U27: Year 15 | V27: Year 16 | W27: Year 17 | X27: Year 18 | Y27: Year 19 | Z27: Year 20
C29: Capacity Post-Availability and Degradation: | D29: MW | F29: =Capacity*Capacity_Factor*(1-F25*Degradation) -> 400 | G29: 398 | H29: 396 | I29: 394 | J29: 392 | K29: 390 | L29: 388 | M29: 386 | N29: 384 | O29: 382 | P29: 380 | Q29: 378 | R29: 376 | S29: 374 | T29: 372 | U29: 370 | V29: 368 | W29: 366 | X29: 364 | Y29: 362 | Z29: 360
C30: Electricity Generation: | D30: MWh | G30: =G29*Hrs_in_Year -> 3486480 | H30: 3468960 | I30: 3451440 | J30: 3433920 | K30: 3416400 | L30: 3398880 | M30: 3381360 | N30: 3363840 | O30: 3346320 | P30: 3328800 | Q30: 3311280 | R30: 3293760 | S30: 3276240 | T30: 3258720 | U30: 3241200 | V30: 3223680 | W30: 3206160 | X30: 3188640 | Y30: 3171120 | Z30: 3153600
C32: PPA Rate: | D32: $ / MWh | F32: =Initial_PPA*(1+PPA_Escalation)^F25 -> 65 | G32: 66.95 | H32: 68.9585 | I32: 71.027255 | J32: 73.15807265 | K32: 75.35281483 | L32: 77.61339927 | M32: 79.94180125 | N32: 82.34005529 | O32: 84.81025695 | P32: 87.35456466 | Q32: 89.9752016 | R32: 92.67445765 | S32: 95.45469137 | T32: 98.31833212 | U32: 101.2678821 | V32: 104.3059185 | W32: 107.4350961 | X32: 110.658149 | Y32: 113.9778935 | Z32: 117.3972303
C33: O&M Expense: | D33: $ / MW | F33: =OM_Expense*(1+OM_Escalation)^F25 -> 20000 | G33: 20500 | H33: 21012.5 | I33: 21537.8125 | J33: 22076.25781 | K33: 22628.16426 | L33: 23193.86836 | M33: 23773.71507 | N33: 24368.05795 | O33: 24977.2594 | P33: 25601.69088 | Q33: 26241.73316 | R33: 26897.77648 | S33: 27570.2209 | T33: 28259.47642 | U33: 28965.96333 | V33: 29690.11241 | W33: 30432.36522 | X33: 31193.17435 | Y33: 31973.00371 | Z33: 32772.32881
C35: Revenue: | D35: $ M | E35: =SUM(G35:Z35) -> 5941.860148 | G35: =G32*G30/Units -> 233.419836 | H35: 239.2142782 | I35: 245.146309 | J35: 251.2189688 | K35: 257.4353566 | L35: 263.7986305 | M35: 270.3120091 | N35: 276.9787716 | O35: 283.802259 | P35: 290.7858748 | Q35: 297.9330855 | R35: 305.2474216 | S35: 312.7324781 | T35: 320.3919152 | U35: 328.2294594 | V35: 336.2489035 | W35: 344.4541077 | X35: 352.8490002 | Y35: 361.4375775 | Z35: 370.2239053
C36: (-) Cash Operating Expenses: | D36: $ M | E36: =SUM(G36:Z36) -> -837.8647697 | G36: =-G33*Capacity/Units -> -32.8 | H36: -33.62 | I36: -34.4605 | J36: -35.3220125 | K36: -36.20506281 | L36: -37.11018938 | M36: -38.03794412 | N36: -38.98889272 | O36: -39.96361504 | P36: -40.96270541 | Q36: -41.98677305 | R36: -43.03644238 | S36: -44.11235344 | T36: -45.21516227 | U36: -46.34554133 | V36: -47.50417986 | W36: -48.69178436 | X36: -49.90907897 | Y36: -51.15680594 | Z36: -52.43572609
C37: EBITDA: | D37: $ M | E37: =SUM(E35:E36) -> 5103.995378 | G37: =SUM(G35:G36) -> 200.619836 | H37: =SUM(H35:H36) -> 205.5942782 | I37: 210.685809 | J37: 215.8969563 | K37: 221.2302938 | L37: 226.6884411 | M37: 232.274065 | N37: 237.9898789 | O37: 243.838644 | P37: =SUM(P35:P36) -> 249.8231694 | Q37: =SUM(Q35:Q36) -> 255.9463125 | R37: 262.2109792 | S37: 268.6201246 | T37: 275.176753 | U37: 281.8839181 | V37: 288.7447236 | W37: 295.7623233 | X37: 302.9399212 | Y37: 310.2807715 | Z37: 317.7881792
C38: (-) Depreciation of Initial Purchase: | D38: $ M | E38: =SUM(G38:Z38) -> -1604.958688 | G38: =-$K$21/$K$18 -> -80.2479344 | H38: -80.2479344 | I38: -80.2479344 | J38: -80.2479344 | K38: -80.2479344 | L38: -80.2479344 | M38: -80.2479344 | N38: -80.2479344 | O38: -80.2479344 | P38: -80.2479344 | Q38: -80.2479344 | R38: -80.2479344 | S38: -80.2479344 | T38: -80.2479344 | U38: -80.2479344 | V38: -80.2479344 | W38: -80.2479344 | X38: -80.2479344 | Y38: -80.2479344 | Z38: -80.2479344
C39: (-) Depreciation of Maint. CapEx: | D39: $ M | E39: =SUM(G39:Z39) -> -47.10534632 | G39: =SUM($F44:F44)/$K$15 -> 0 | H39: =SUM($F44:G44)/$K$15 -> 0 | I39: =SUM($F44:H44)/$K$15 -> 0 | J39: =SUM($F44:I44)/$K$15 -> 0 | K39: =SUM($F44:J44)/$K$15 -> 0 | L39: =SUM($F44:K44)/$K$15 -> -1.474868625 | M39: =SUM($F44:L44)/$K$15 -> -1.474868625 | N39: =SUM($F44:M44)/$K$15 -> -1.474868625 | O39: =SUM($F44:N44)/$K$15 -> -1.474868625 | P39: =SUM($F44:O44)/$K$15 -> -1.474868625 | Q39: =SUM($F44:P44)/$K$15 -> -3.973100319 | R39: =SUM($F44:Q44)/$K$15 -> -3.973100319 | S39: =SUM($F44:R44)/$K$15 -> -3.973100319 | T39: =SUM($F44:S44)/$K$15 -> -3.973100319 | U39: =SUM($F44:T44)/$K$15 -> -3.973100319 | V39: =SUM($F44:U44)/$K$15 -> -3.973100319 | W39: =SUM($F44:V44)/$K$15 -> -3.973100319 | X39: =SUM($F44:W44)/$K$15 -> -3.973100319 | Y39: =SUM($F44:X44)/$K$15 -> -3.973100319 | Z39: =SUM($F44:Y44)/$K$15 -> -3.973100319
C40: (-) Interest Expense: | D40: $ M | E40: =SUM(G40:Z40) -> -501.7860683 | G40: =-G59 -> -78.96947338 | H40: =-H59 -> -74.96024135 | I40: -69.60941705 | J40: -63.55853195 | K40: -56.74329952 | L40: -50.56876805 | M40: -42.10779001 | N40: -32.66291946 | O40: -22.14564605 | P40: -10.45998143 | Q40: 0 | R40: 0 | S40: 0 | T40: 0 | U40: 0 | V40: 0 | W40: 0 | X40: 0 | Y40: 0 | Z40: 0
C41: Pre-Tax Income: | D41: $ M | E41: =SUM(E37:E40) -> 2950.145275 | G41: =SUM(G37:G40) -> 41.40242822 | H41: =SUM(H37:H40) -> 50.38610241 | I41: 60.82845755 | J41: 72.09048998 | K41: 84.23905985 | L41: 94.39687006 | M41: 108.4434719 | N41: 123.6041564 | O41: 139.9701949 | P41: =SUM(P37:P40) -> 157.640385 | Q41: 171.7252778 | R41: 177.9899445 | S41: 184.3990899 | T41: 190.9557182 | U41: 197.6628833 | V41: 204.5236889 | W41: 211.5412886 | X41: 218.7188865 | Y41: 226.0597368 | Z41: 233.5671445
C43: EBITDA: | D43: $ M | E43: =E37 -> 5103.995378 | G43: =G37 -> 200.619836 | H43: 205.5942782 | I43: 210.685809 | J43: 215.8969563 | K43: 221.2302938 | L43: 226.6884411 | M43: 232.274065 | N43: 237.9898789 | O43: 243.838644 | P43: =P37 -> 249.8231694 | Q43: 255.9463125 | R43: 262.2109792 | S43: 268.6201246 | T43: 275.176753 | U43: 281.8839181 | V43: 288.7447236 | W43: 295.7623233 | X43: 302.9399212 | Y43: 310.2807715 | Z43: 317.7881792
C44: (-) Maintenance CapEx & Other: | D44: $ M | E44: =SUM(G44:Z44) -> -107.2647317 | G44: 0 | H44: 0 | I44: 0 | J44: 0 | K44: -22.12302938 | L44: 0 | M44: 0 | N44: 0 | O44: 0 | P44: -37.47347541 | Q44: 0 | R44: 0 | S44: 0 | T44: 0 | U44: 0 | V44: 0 | W44: 0 | X44: 0 | Y44: 0 | Z44: -47.66822689
C45: (+/-) Change in Working Capital: | D45: $ M | E45: =SUM(G45:Z45) -> -18.51119527 | G45: =(F35-G35)*WC_Pct_Rev -> -11.6709918 | H45: -0.289722108 | I45: -0.2966015419 | J45: -0.3036329919 | K45: -0.3108193875 | L45: -0.3181636971 | M45: -0.3256689279 | N45: -0.3333381252 | O45: -0.3411743723 | P45: -0.3491807899 | Q45: -0.3573605356 | R45: -0.3657168034 | S45: -0.3742528228 | T45: -0.3829718582 | U45: -0.3918772081 | V45: -0.4009722044 | W45: -0.410260211 | X45: -0.419744623 | Y45: -0.4294288656 | Z45: -0.4393163925
C46: (-) Cash Taxes: | D46: $ M | E46: =SUM(G46:Z46) -> -737.5363189 | G46: =-G41*Tax_Rate -> -10.35060705 | H46: -12.5965256 | I46: -15.20711439 | J46: -18.0226225 | K46: -21.05976496 | L46: -23.59921752 | M46: -27.11086798 | N46: -30.9010391 | O46: -34.99254873 | P46: -39.41009624 | Q46: -42.93131944 | R46: -44.49748613 | S46: -46.09977248 | T46: -47.73892956 | U46: -49.41572084 | V46: -51.13092223 | W46: -52.88532216 | X46: -54.67972162 | Y46: -56.5149342 | Z46: -58.39178613
C47: Cash Flow Available for Debt Service (CFADS): | D47: $ M | E47: =SUM(E43:E46) -> 4240.683132 | G47: 178.5982371 | H47: 192.7080304 | I47: 195.1820931 | J47: 197.5707008 | K47: 177.73668 | L47: 202.7710599 | M47: 204.8375281 | N47: 206.7555016 | O47: 208.5049209 | P47: =SUM(P43:P46) -> 172.590417 | Q47: 212.6576325 | R47: 217.3477763 | S47: 222.1460993 | T47: 227.0548515 | U47: 232.07632 | V47: 237.2128292 | W47: 242.466741 | X47: 247.840455 | Y47: 253.3364085 | Z47: 211.2888498
C49: Pasted CFADS from Macro: | D49: $ M | E49: =SUM(G49:Z49) -> 4240.649166 | G49: =Macros!G9 -> 178.5926906 | H49: =Macros!H9 -> 192.7027265 | I49: =Macros!I9 -> 195.1774021 | J49: =Macros!J9 -> 197.5662844 | K49: =Macros!K9 -> 177.7329213 | L49: =Macros!L9 -> 202.7678227 | M49: =Macros!M9 -> 204.8347434 | N49: =Macros!N9 -> 206.7534804 | O49: =Macros!O9 -> 208.5034382 | P49: =Macros!P9 -> 172.5896937 | Q49: =Macros!Q9 -> 212.6576325 | R49: =Macros!R9 -> 217.3477763 | S49: =Macros!S9 -> 222.1460993 | T49: =Macros!T9 -> 227.0548515 | U49: =Macros!U9 -> 232.07632 | V49: =Macros!V9 -> 237.2128292 | W49: =Macros!W9 -> 242.466741 | X49: =Macros!X9 -> 247.840455 | Y49: =Macros!Y9 -> 253.3364085 | Z49: =Macros!Z9 -> 211.2888498
C50: Present Value of CFADS Until Maturity: | D50: $ M | F50: =IF(F25<Tenor,NPV(Interest_Rate,OFFSET(G49,0,0,1,Tenor-F25)),"N/A") -> 1184.542101 | G50: 1124.40362 | H50: 1044.141256 | I50: 953.3779792 | J50: 851.1494928 | K50: 758.5315208 | L50: 631.6168502 | M50: 489.9437919 | N50: 332.1846907 | O50: 156.8997215 | P50: N/A | Q50: N/A | R50: N/A | S50: N/A | T50: N/A | U50: N/A | V50: N/A | W50: N/A | X50: N/A | Y50: N/A | Z50: N/A
C52: Maximum Debt Service Allowed: | D52: $ M | E52: =SUM(G52:Z52) -> 2827.099444 | G52: =G49/Min_LLCR -> 119.0617937 | H52: 128.4684843 | I52: 130.1182681 | J52: 131.7108562 | K52: 118.4886142 | L52: 135.1785484 | M52: 136.5564956 | N52: 137.8356536 | O52: 139.0022922 | P52: =P49/Min_LLCR -> 115.0597958 | Q52: 141.771755 | R52: 144.8985175 | S52: 148.0973996 | T52: 151.369901 | U52: 154.7175467 | V52: 158.1418861 | W52: 161.644494 | X52: 165.22697 | Y52: 168.890939 | Z52: 140.8592332
C53: Maximum Debt Amortization Allowed: | D53: $ M | E53: =SUM(G53:Z53) -> 2325.313376 | G53: =MAX(0,G52-G59) -> 40.09232035 | H53: =MAX(0,H52-H59) -> 53.50824298 | I53: 60.508851 | J53: 68.15232429 | K53: 61.74531467 | L53: 84.60978039 | M53: 94.44870556 | N53: 105.1727341 | O53: 116.8566461 | P53: =MAX(0,P52-P59) -> 104.5998143 | Q53: 141.771755 | R53: 144.8985175 | S53: 148.0973996 | T53: 151.369901 | U53: 154.7175467 | V53: 158.1418861 | W53: 161.644494 | X53: 165.22697 | Y53: 168.890939 | Z53: 140.8592332
C55: Beginning Debt Balance: | D55: $ M | E55: =E19 -> 789.6947338 | G55: =F57 -> 789.6947338 | H55: =G57 -> 749.6024135 | I55: 696.0941705 | J55: 635.5853195 | K55: 567.4329952 | L55: 505.6876805 | M55: 421.0779001 | N55: 326.6291946 | O55: 221.4564605 | P55: =O57 -> 104.5998143 | Q55: =P57 -> 0 | R55: =Q57 -> 0 | S55: =R57 -> 0 | T55: =S57 -> 0 | U55: =T57 -> 0 | V55: =U57 -> 0 | W55: =V57 -> 0 | X55: =W57 -> 0 | Y55: =X57 -> 0 | Z55: =Y57 -> 0
C56: (-) Debt Amortization (Sculpted): | D56: $ M | E56: =SUM(G56:Z56) -> -789.6947338 | G56: =-MIN(G53,G55) -> -40.09232035 | H56: =-MIN(H53,H55) -> -53.50824298 | I56: -60.508851 | J56: -68.15232429 | K56: -61.74531467 | L56: -84.60978039 | M56: -94.44870556 | N56: -105.1727341 | O56: -116.8566461 | P56: =-MIN(P53,P55) -> -104.5998143 | Q56: 0 | R56: 0 | S56: 0 | T56: 0 | U56: 0 | V56: 0 | W56: 0 | X56: 0 | Y56: 0 | Z56: 0
C57: Ending Debt Balance: | D57: $ M | E57: =SUM(E55:E56) -> 0 | F57: =E19 -> 789.6947338 | G57: =SUM(G55:G56) -> 749.6024135 | H57: =SUM(H55:H56) -> 696.0941705 | I57: 635.5853195 | J57: 567.4329952 | K57: 505.6876805 | L57: 421.0779001 | M57: 326.6291946 | N57: 221.4564605 | O57: 104.5998143 | P57: =SUM(P55:P56) -> 0 | Q57: 0 | R57: 0 | S57: 0 | T57: 0 | U57: 0 | V57: 0 | W57: 0 | X57: 0 | Y57: 0 | Z57: 0
C59: (+) Debt Interest Expense: | D59: $ M | E59: =SUM(G59:Z59) -> 501.7860683 | G59: =G55*Interest_Rate -> 78.96947338 | H59: 74.96024135 | I59: 69.60941705 | J59: 63.55853195 | K59: 56.74329952 | L59: 50.56876805 | M59: 42.10779001 | N59: 32.66291946 | O59: 22.14564605 | P59: =P55*Interest_Rate -> 10.45998143 | Q59: 0 | R59: 0 | S59: 0 | T59: 0 | U59: 0 | V59: 0 | W59: 0 | X59: 0 | Y59: 0 | Z59: 0
C60: (+) Debt Amortization (Sculpted): | D60: $ M | E60: =SUM(G60:Z60) -> 789.6947338 | G60: =-G56 -> 40.09232035 | H60: =-H56 -> 53.50824298 | I60: 60.508851 | J60: 68.15232429 | K60: 61.74531467 | L60: 84.60978039 | M60: 94.44870556 | N60: 105.1727341 | O60: 116.8566461 | P60: =-P56 -> 104.5998143 | Q60: 0 | R60: 0 | S60: 0 | T60: 0 | U60: 0 | V60: 0 | W60: 0 | X60: 0 | Y60: 0 | Z60: 0
C61: Total Debt Service: | D61: $ M | E61: =SUM(E59:E60) -> 1291.480802 | G61: =SUM(G59:G60) -> 119.0617937 | H61: =SUM(H59:H60) -> 128.4684843 | I61: 130.1182681 | J61: 131.7108562 | K61: 118.4886142 | L61: 135.1785484 | M61: 136.5564956 | N61: 137.8356536 | O61: 139.0022922 | P61: =SUM(P59:P60) -> 115.0597958 | Q61: 0 | R61: 0 | S61: 0 | T61: 0 | U61: 0 | V61: 0 | W61: 0 | X61: 0 | Y61: 0 | Z61: 0
C63: Cash Flow Post-Debt Service: | D63: $ M | E63: =SUM(G63:Z63) -> 2949.20233 | G63: =G47-G61 -> 59.53644342 | H63: =H47-H61 -> 64.23954612 | I63: 65.06382501 | J63: 65.85984461 | K63: 59.24806585 | L63: 67.59251148 | M63: 68.28103248 | N63: 68.91984807 | O63: 69.50262873 | P63: =P47-P61 -> 57.53062119 | Q63: 212.6576325 | R63: 217.3477763 | S63: 222.1460993 | T63: 227.0548515 | U63: 232.07632 | V63: 237.2128292 | W63: 242.466741 | X63: 247.840455 | Y63: 253.3364085 | Z63: 211.2888498
C65: Debt Service Coverage Ratio (DSCR): | D65: x | E65: =IFERROR(E47/E61,"N/A") -> 3.283582013 | G65: 1.500046585 | H65: 1.500041286 | I65: 1.500036052 | J65: 1.500033532 | K65: 1.500031723 | L65: 1.500023948 | M65: 1.500020392 | N65: 1.500014664 | O65: 1.500010666 | P65: =IFERROR(P47/P61,"N/A") -> 1.500006286 | Q65: N/A | R65: N/A | S65: N/A | T65: N/A | U65: N/A | V65: N/A | W65: N/A | X65: N/A | Y65: N/A | Z65: N/A
C66: Loan Life Coverage Ratio (LLCR): | D66: x | F66: =IFERROR(F50/F57,"N/A") -> 1.5 | G66: =IFERROR(G50/G57,"N/A") -> 1.5 | H66: =IFERROR(H50/H57,"N/A") -> 1.5 | I66: 1.5 | J66: 1.5 | K66: 1.5 | L66: 1.5 | M66: 1.5 | N66: 1.5 | O66: 1.5 | P66: =IFERROR(P50/P57,"N/A") -> N/A | Q66: N/A | R66: N/A | S66: N/A | T66: N/A | U66: N/A | V66: N/A | W66: N/A | X66: N/A | Y66: N/A | Z66: N/A
C67: EBITDA Margin: | D67: x | E67: =IFERROR(E43/E35,"N/A") -> 0.8589894833 | G67: =IFERROR(G43/G35,"N/A") -> 0.8594806656 | H67: 0.8594565498 | I67: 0.8594288442 | J67: 0.8593975102 | K67: 0.8593625083 | L67: 0.8593237982 | M67: 0.8592813385 | N67: 0.8592350869 | O67: 0.8591850002 | P67: 0.8591310343 | Q67: 0.859073144 | R67: 0.8590112829 | S67: 0.8589454037 | T67: 0.8588754581 | U67: 0.8588013964 | V67: 0.858723168 | W67: 0.8586407209 | X67: 0.858554002 | Y67: 0.858462957 | Z67: 0.8583675302
C68: Cash Flow Yield: | D68: x | G68: =IFERROR(G63/$K$23,"N/A") -> 0.07302719949 | H68: 0.07879600931 | I68: 0.079807067 | J68: 0.08078346193 | K68: 0.07267347655 | L68: 0.08290874524 | M68: 0.08375328276 | N68: 0.0845368518 | O68: 0.08525168858 | P68: 0.07056686475 | Q68: 0.2608451305 | R68: 0.266598045 | S68: 0.2724836517 | T68: 0.2785047105 | U68: 0.2846640267 | V68: 0.2909644514 | W68: 0.2974088818 | X68: 0.3040002611 | Y68: 0.3107415791 | Z68: 0.2591661863
G70: =$G$26 -> Projected Years:
B71: Returns Calculations: | D71: =$D$27 -> Units: | E71: =$E$27 -> Total: | F71: =$F$27 -> Year 0 | G71: =$G$27 -> Year 1 | H71: =$H$27 -> Year 2 | I71: =$I$27 -> Year 3 | J71: =$J$27 -> Year 4 | K71: =$K$27 -> Year 5 | L71: =$L$27 -> Year 6 | M71: =$M$27 -> Year 7 | N71: =$N$27 -> Year 8 | O71: =$O$27 -> Year 9 | P71: =$P$27 -> Year 10 | Q71: =$Q$27 -> Year 11 | R71: =$R$27 -> Year 12 | S71: =$S$27 -> Year 13 | T71: =$T$27 -> Year 14 | U71: =$U$27 -> Year 15 | V71: =$V$27 -> Year 16 | W71: =$W$27 -> Year 17 | X71: =$X$27 -> Year 18 | Y71: =$Y$27 -> Year 19 | Z71: =$Z$27 -> Year 20
C73: (-) Upfront Investor Equity: | D73: $ M | E73: =SUM(F73:Z73) -> -815.2639542 | F73: =-K23 -> -815.2639542 | G73: 0 | H73: 0 | I73: 0 | J73: 0 | K73: 0 | L73: 0 | M73: 0 | N73: 0 | O73: 0 | P73: 0 | Q73: 0 | R73: 0 | S73: 0 | T73: 0 | U73: 0 | V73: 0 | W73: 0 | X73: 0 | Y73: 0 | Z73: 0
C74: (+) Cash Flow Post-Debt Service: | D74: $ M | E74: =SUM(F74:Z74) -> 2949.20233 | G74: =G63 -> 59.53644342 | H74: =H63 -> 64.23954612 | I74: 65.06382501 | J74: 65.85984461 | K74: 59.24806585 | L74: 67.59251148 | M74: 68.28103248 | N74: 68.91984807 | O74: 69.50262873 | P74: 57.53062119 | Q74: 212.6576325 | R74: 217.3477763 | S74: 222.1460993 | T74: 227.0548515 | U74: 232.07632 | V74: 237.2128292 | W74: 242.466741 | X74: 247.840455 | Y74: 253.3364085 | Z74: 211.2888498
C75: (+) Exit Value (Terminal Value): | D75: $ M | E75: 0 | G75: 0 | H75: 0 | I75: 0 | J75: 0 | K75: 0 | L75: 0 | M75: 0 | N75: 0 | O75: 0 | P75: 0 | Q75: 0 | R75: 0 | S75: 0 | T75: 0 | U75: 0 | V75: 0 | W75: 0 | X75: 0 | Y75: 0 | Z75: 0
C76: Total Cash Flows to Equity: | D76: $ M | E76: =SUM(E73:E75) -> 2133.938376 | F76: =SUM(F73:F75) -> -815.2639542 | G76: =SUM(G73:G75) -> 59.53644342 | H76: 64.23954612 | I76: 65.06382501 | J76: 65.85984461 | K76: 59.24806585 | L76: 67.59251148 | M76: 68.28103248 | N76: 68.91984807 | O76: 69.50262873 | P76: 57.53062119 | Q76: 212.6576325 | R76: 217.3477763 | S76: 222.1460993 | T76: 227.0548515 | U76: 232.07632 | V76: 237.2128292 | W76: 242.466741 | X76: 247.840455 | Y76: 253.3364085 | Z76: 211.2888498
C78: Equity IRR: | D78: % | E78: =IRR(F76:Z76) -> 0.1146655658
C80: Total Returns to Equity: | D80: $ | E80: =SUMIF(F76:Z76,">0",F76:Z76) -> 2949.20233
C81: Invested Equity: | D81: $ | E81: =-SUMIF(F76:Z76,"<=0",F76:Z76) -> 815.2639542
C82: Cash-on-Cash Multiple: | D82: x | E82: =E80/E81 -> 3.617481571
G84: =$G$26 -> Projected Years:
B85: Payback Period Calculations: | D85: =$D$27 -> Units: | E85: =$E$27 -> Total: | F85: =$F$27 -> Year 0 | G85: =$G$27 -> Year 1 | H85: =$H$27 -> Year 2 | I85: =$I$27 -> Year 3 | J85: =$J$27 -> Year 4 | K85: =$K$27 -> Year 5 | L85: =$L$27 -> Year 6 | M85: =$M$27 -> Year 7 | N85: =$N$27 -> Year 8 | O85: =$O$27 -> Year 9 | P85: =$P$27 -> Year 10 | Q85: =$Q$27 -> Year 11 | R85: =$R$27 -> Year 12 | S85: =$S$27 -> Year 13 | T85: =$T$27 -> Year 14 | U85: =$U$27 -> Year 15 | V85: =$V$27 -> Year 16 | W85: =$W$27 -> Year 17 | X85: =$X$27 -> Year 18 | Y85: =$Y$27 -> Year 19 | Z85: =$Z$27 -> Year 20
C87: Levered Payback Period:
C88: Upfront Investor Equity: | D88: $ M | E88: =K23 -> 815.2639542
C89: Positive Cash Flow to Equity: | D89: $ M | G89: =G76 -> 59.53644342 | H89: =H76 -> 64.23954612 | I89: 65.06382501 | J89: 65.85984461 | K89: 59.24806585 | L89: 67.59251148 | M89: 68.28103248 | N89: 68.91984807 | O89: 69.50262873 | P89: 57.53062119 | Q89: 212.6576325 | R89: 217.3477763 | S89: 222.1460993 | T89: 227.0548515 | U89: 232.07632 | V89: 237.2128292 | W89: 242.466741 | X89: 247.840455 | Y89: 253.3364085 | Z89: 211.2888498
C90: Unrecovered Equity: | D90: $ M | G90: =MAX(0,$E88-SUM($G89:G89)) -> 755.7275108 | H90: =MAX(0,$E88-SUM($G89:H89)) -> 691.4879646 | I90: =MAX(0,$E88-SUM($G89:I89)) -> 626.4241396 | J90: =MAX(0,$E88-SUM($G89:J89)) -> 560.564295 | K90: =MAX(0,$E88-SUM($G89:K89)) -> 501.3162292 | L90: =MAX(0,$E88-SUM($G89:L89)) -> 433.7237177 | M90: =MAX(0,$E88-SUM($G89:M89)) -> 365.4426852 | N90: =MAX(0,$E88-SUM($G89:N89)) -> 296.5228371 | O90: =MAX(0,$E88-SUM($G89:O89)) -> 227.0202084 | P90: =MAX(0,$E88-SUM($G89:P89)) -> 169.4895872 | Q90: =MAX(0,$E88-SUM($G89:Q89)) -> 0 | R90: =MAX(0,$E88-SUM($G89:R89)) -> 0 | S90: =MAX(0,$E88-SUM($G89:S89)) -> 0 | T90: =MAX(0,$E88-SUM($G89:T89)) -> 0 | U90: =MAX(0,$E88-SUM($G89:U89)) -> 0 | V90: =MAX(0,$E88-SUM($G89:V89)) -> 0 | W90: =MAX(0,$E88-SUM($G89:W89)) -> 0 | X90: =MAX(0,$E88-SUM($G89:X89)) -> 0 | Y90: =MAX(0,$E88-SUM($G89:Y89)) -> 0 | Z90: =MAX(0,$E88-SUM($G89:Z89)) -> 0
C91: Breakeven Point or Beyond? | D91: Y / N | G91: =IF(G90=0,1,0) -> 0 | H91: =IF(H90=0,1,0) -> 0 | I91: 0 | J91: 0 | K91: 0 | L91: 0 | M91: 0 | N91: 0 | O91: 0 | P91: 0 | Q91: 1 | R91: 1 | S91: 1 | T91: 1 | U91: 1 | V91: 1 | W91: 1 | X91: 1 | Y91: 1 | Z91: 1
C92: Year Fraction for Recovery: | D92: # | G92: =IF(AND(F91=0,G91=1),F90/G89,"N/A") -> N/A | H92: =IF(AND(G91=0,H91=1),G90/H89,"N/A") -> N/A | I92: N/A | J92: N/A | K92: N/A | L92: N/A | M92: N/A | N92: N/A | O92: N/A | P92: N/A | Q92: 0.7970068377 | R92: N/A | S92: N/A | T92: N/A | U92: N/A | V92: N/A | W92: N/A | X92: N/A | Y92: N/A | Z92: N/A
C93: Total Cash Flow to Equity: | D93: $ M | F93: =F76 -> -815.2639542 | G93: =G76 -> 59.53644342 | H93: 64.23954612 | I93: 65.06382501 | J93: 65.85984461 | K93: 59.24806585 | L93: 67.59251148 | M93: 68.28103248 | N93: 68.91984807 | O93: 69.50262873 | P93: 57.53062119 | Q93: 212.6576325 | R93: 217.3477763 | S93: 222.1460993 | T93: 227.0548515 | U93: 232.07632 | V93: 237.2128292 | W93: 242.466741 | X93: 247.840455 | Y93: 253.3364085 | Z93: 211.2888498
C95: Levered Payback Period: | D95: # Years | E95: =COUNTIF(G91:Z91,0)+SUM(G92:Z92) -> 10.79700684
C96: Levered IRR (Equity IRR): | D96: % | E96: =IRR(F93:Z93) -> 0.1146655658
C97: Levered Cash-on-Cash Multiple: | D97: x | E97: =-SUMIF(F93:Z93,">0",F93:Z93)/SUMIF(F93:Z93,"<=0",F93:Z93) -> 3.617481571
C99: Unlevered Payback Period:
C100: Upfront Total Capital: | D100: $ M | E100: =K21 -> 1604.958688
C101: Positive Unlevered Cash Flow: | D101: $ M | G101: =(G41-G40)*(1-Tax_Rate)+G44+G45-G39-G38 -> 158.8558688 | H101: =(H41-H40)*(1-Tax_Rate)+H44+H45-H39-H38 -> 173.9679701 | I101: =(I41-I40)*(1-Tax_Rate)+I44+I45-I39-I38 -> 177.7797388 | J101: =(J41-J40)*(1-Tax_Rate)+J44+J45-J39-J38 -> 181.6810679 | K101: =(K41-K40)*(1-Tax_Rate)+K44+K45-K39-K38 -> 163.5508552 | L101: =(L41-L40)*(1-Tax_Rate)+L44+L45-L39-L38 -> 190.1288679 | M101: =(M41-M40)*(1-Tax_Rate)+M44+M45-M39-M38 -> 194.3105806 | N101: =(N41-N40)*(1-Tax_Rate)+N44+N45-N39-N38 -> 198.5897718 | O101: =(O41-O40)*(1-Tax_Rate)+O44+O45-O39-O38 -> 202.9685094 | P101: =(P41-P40)*(1-Tax_Rate)+P44+P45-P39-P38 -> 169.9754216 | Q101: =(Q41-Q40)*(1-Tax_Rate)+Q44+Q45-Q39-Q38 -> 212.6576325 | R101: =(R41-R40)*(1-Tax_Rate)+R44+R45-R39-R38 -> 217.3477763 | S101: =(S41-S40)*(1-Tax_Rate)+S44+S45-S39-S38 -> 222.1460993 | T101: =(T41-T40)*(1-Tax_Rate)+T44+T45-T39-T38 -> 227.0548515 | U101: =(U41-U40)*(1-Tax_Rate)+U44+U45-U39-U38 -> 232.07632 | V101: =(V41-V40)*(1-Tax_Rate)+V44+V45-V39-V38 -> 237.2128292 | W101: =(W41-W40)*(1-Tax_Rate)+W44+W45-W39-W38 -> 242.466741 | X101: =(X41-X40)*(1-Tax_Rate)+X44+X45-X39-X38 -> 247.840455 | Y101: =(Y41-Y40)*(1-Tax_Rate)+Y44+Y45-Y39-Y38 -> 253.3364085 | Z101: =(Z41-Z40)*(1-Tax_Rate)+Z44+Z45-Z39-Z38 -> 211.2888498
C102: Unrecovered Capital: | D102: $ M | G102: =MAX(0,$E$100-SUM($G101:G101)) -> 1446.102819 | H102: =MAX(0,$E$100-SUM($G101:H101)) -> 1272.134849 | I102: =MAX(0,$E$100-SUM($G101:I101)) -> 1094.35511 | J102: =MAX(0,$E$100-SUM($G101:J101)) -> 912.6740424 | K102: =MAX(0,$E$100-SUM($G101:K101)) -> 749.1231873 | L102: =MAX(0,$E$100-SUM($G101:L101)) -> 558.9943193 | M102: =MAX(0,$E$100-SUM($G101:M101)) -> 364.6837388 | N102: =MAX(0,$E$100-SUM($G101:N101)) -> 166.093967 | O102: =MAX(0,$E$100-SUM($G101:O101)) -> 0 | P102: =MAX(0,$E$100-SUM($G101:P101)) -> 0 | Q102: =MAX(0,$E$100-SUM($G101:Q101)) -> 0 | R102: =MAX(0,$E$100-SUM($G101:R101)) -> 0 | S102: =MAX(0,$E$100-SUM($G101:S101)) -> 0 | T102: =MAX(0,$E$100-SUM($G101:T101)) -> 0 | U102: =MAX(0,$E$100-SUM($G101:U101)) -> 0 | V102: =MAX(0,$E$100-SUM($G101:V101)) -> 0 | W102: =MAX(0,$E$100-SUM($G101:W101)) -> 0 | X102: =MAX(0,$E$100-SUM($G101:X101)) -> 0 | Y102: =MAX(0,$E$100-SUM($G101:Y101)) -> 0 | Z102: =MAX(0,$E$100-SUM($G101:Z101)) -> 0
C103: Breakeven Point or Beyond? | D103: Y / N | G103: =IF(G102=0,1,0) -> 0 | H103: =IF(H102=0,1,0) -> 0 | I103: 0 | J103: 0 | K103: 0 | L103: 0 | M103: 0 | N103: 0 | O103: 1 | P103: 1 | Q103: 1 | R103: 1 | S103: 1 | T103: 1 | U103: 1 | V103: 1 | W103: 1 | X103: 1 | Y103: 1 | Z103: 1
C104: Year Fraction for Recovery: | D104: # | G104: =IF(AND(F103=0,G103=1),F102/G101,"N/A") -> N/A | H104: =IF(AND(G103=0,H103=1),G102/H101,"N/A") -> N/A | I104: N/A | J104: N/A | K104: N/A | L104: N/A | M104: N/A | N104: N/A | O104: 0.8183238253 | P104: N/A | Q104: N/A | R104: N/A | S104: N/A | T104: N/A | U104: N/A | V104: N/A | W104: N/A | X104: N/A | Y104: N/A | Z104: N/A
C105: Total Unlevered Cash Flow: | D105: $ M | F105: =-E100 -> -1604.958688 | G105: =G101 -> 158.8558688 | H105: =H101 -> 173.9679701 | I105: 177.7797388 | J105: 181.6810679 | K105: 163.5508552 | L105: 190.1288679 | M105: 194.3105806 | N105: 198.5897718 | O105: 202.9685094 | P105: 169.9754216 | Q105: 212.6576325 | R105: 217.3477763 | S105: 222.1460993 | T105: 227.0548515 | U105: 232.07632 | V105: 237.2128292 | W105: 242.466741 | X105: 247.840455 | Y105: 253.3364085 | Z105: 211.2888498
C107: Unlevered Payback Period: | D107: # Years | E107: =COUNTIF(G103:Z103,0)+SUM(G104:Z104) -> 8.818323825
C108: Unlevered IRR: | D108: % | E108: =IRR(F105:Z105) -> 0.1028629163
C109: Unlevered Cash-on-Cash Multiple: | D109: x | E109: =-SUMIF(F105:Z105,">0",F105:Z105)/SUMIF(F105:Z105,"<=0",F105:Z105) -> 2.56407635

Sheet Macros
B2: Macro Output for Copy/Paste VBA Code
B3: =Model!$B$3 -> ($ in Millions)
G5: =Model!$G$26 -> Projected Years:
B6: Cash Flow Projections: | D6: =Model!$D$27 -> Units: | E6: =Model!$E$27 -> Total: | F6: =Model!F27 -> Year 0 | G6: =Model!G27 -> Year 1 | H6: =Model!H27 -> Year 2 | I6: =Model!I27 -> Year 3 | J6: =Model!J27 -> Year 4 | K6: =Model!K27 -> Year 5 | L6: =Model!L27 -> Year 6 | M6: =Model!M27 -> Year 7 | N6: =Model!N27 -> Year 8 | O6: =Model!O27 -> Year 9 | P6: =Model!P27 -> Year 10 | Q6: =Model!Q27 -> Year 11 | R6: =Model!R27 -> Year 12 | S6: =Model!S27 -> Year 13 | T6: =Model!T27 -> Year 14 | U6: =Model!U27 -> Year 15 | V6: =Model!V27 -> Year 16 | W6: =Model!W27 -> Year 17 | X6: =Model!X27 -> Year 18 | Y6: =Model!Y27 -> Year 19 | Z6: =Model!Z27 -> Year 20
C8: CFADS Link: | D8: $ M | E8: =SUM(CFADS_Links) -> 4240.683132 | G8: =Model!G47 -> 178.5982371 | H8: =Model!H47 -> 192.7080304 | I8: =Model!I47 -> 195.1820931 | J8: =Model!J47 -> 197.5707008 | K8: =Model!K47 -> 177.73668 | L8: =Model!L47 -> 202.7710599 | M8: =Model!M47 -> 204.8375281 | N8: =Model!N47 -> 206.7555016 | O8: =Model!O47 -> 208.5049209 | P8: =Model!P47 -> 172.590417 | Q8: =Model!Q47 -> 212.6576325 | R8: =Model!R47 -> 217.3477763 | S8: =Model!S47 -> 222.1460993 | T8: =Model!T47 -> 227.0548515 | U8: =Model!U47 -> 232.07632 | V8: =Model!V47 -> 237.2128292 | W8: =Model!W47 -> 242.466741 | X8: =Model!X47 -> 247.840455 | Y8: =Model!Y47 -> 253.3364085 | Z8: =Model!Z47 -> 211.2888498
C9: Pasted CFADS: | D9: $ M | E9: =SUM(CFADS_Paste) -> 4240.649166 | G9: 178.5926906 | H9: 192.7027265 | I9: 195.1774021 | J9: 197.5662844 | K9: 177.7329213 | L9: 202.7678227 | M9: 204.8347434 | N9: 206.7534804 | O9: 208.5034382 | P9: 172.5896937 | Q9: 212.6576325 | R9: 217.3477763 | S9: 222.1460993 | T9: 227.0548515 | U9: 232.07632 | V9: 237.2128292 | W9: 242.466741 | X9: 247.840455 | Y9: 253.3364085 | Z9: 211.2888498
C11: Check / Comparison: | D11: $ M | E11: =ROUND(E8-E9,0) -> 0
